bitfinex-derivatives/quotes_ETHF0:USTF0_20240917
["timestamp","ask_amount","ask_price","bid_price","bid_amount"]
[1726535056754,1.2311,2279.8,2279.4,0.4041]
[1726535056959,1.2311,2279.8,2279.5,0.43867]
[1726535057452,1.2311,2279.8,2279.4,0.4041]
[1726535057650,1.2311,2279.8,2279.7,0.43863]
[1726535057854,1.2311,2279.8,2279.4,0.84277]
[1726535057855,1.66972,2279.8,2279.4,0.84277]
[1726535058055,3.2078,2279.7,2279.4,0.84277]
[1726535058248,1.66972,2279.8,2279.5,0.43866]
[1726535058249,1.2311,2279.8,2279.5,0.43866]
[1726535058855,1.2311,2279.8,2279.4,0.4041]
[1726535059158,1.2311,2279.8,2279.6,0.43864]
[1726535059557,0.8116,2279.8,2279.6,0.43864]
[1726535059954,0.068853,2279.7,2279.6,0.43864]
[1726535062268,0.068853,2279.7,2279.6,3.86864]
[1726535062457,0.4106,2280.1,2279.6,6.6378]
[1726535062659,0.4106,2280.1,2279.9,0.43858]
[1726535062660,0.06885208,2280.0,2279.9,0.43858]
[1726535062963,0.4106,2280.1,2279.9,0.43858]
[1726535063155,0.13771185,2280.0,2279.9,0.43858]
[1726535063353,0.06885562,2280.0,2279.9,0.43858]
[1726535064165,0.06885562,2280.0,2279.8,0.4386]
[1726535064470,0.06885562,2280.0,2279.9,0.43859]
[1726535065065,0.06885562,2280.0,2279.8,0.43859]
[1726535065268,0.06885562,2280.0,2279.9,0.43859]
[1726535065762,4.45525562,2280.0,2279.9,0.43859]
[1726535066160,4.45525562,2280.0,2279.5,0.3858]
[1726535066161,4.45525562,2280.0,2279.8,0.43859]
[1726535066467,0.06885562,2280.0,2279.9,0.43859]
[1726535069078,4.05696,2280.1,2279.9,0.43859]
[1726535069566,0.43858,2280.0,2279.8,0.4386]
[1726535069769,3.6184,2280.1,2279.5,0.3858]
[1726535069770,4.05697,2280.1,2279.5,0.3858]
[1726535070677,4.05697,2280.1,2279.8,0.43859]
[1726535070874,4.05697,2280.1,2279.5,0.3858]
[1726535071062,4.05697,2280.1,2279.9,0.43858]
[1726535072473,4.05697,2280.1,2280.0,0.43857]
[1726535072474,0.4106,2280.1,2280.0,0.43857]
[1726535073277,4.7962,2280.1,2280.0,0.43857]
[1726535074581,0.4169,2280.2,2280.1,0.43855]
[1726535075080,0.43849,2280.5,2279.8,4.5265]
[1726535075081,0.43849,2280.5,2280.3,0.4385]
[1726535075280,0.85349,2280.5,2280.3,0.4385]
[1726535075478,4.3848,2280.4,2280.3,0.4385]
[1726535075675,4.82329,2280.4,2280.3,0.4385]
[1726535075982,0.43849,2280.4,2280.2,0.43852]
[1726535076175,4.06128,2280.5,2280.3,0.43851]
[1726535076877,0.43849,2280.4,2280.3,0.43851]
[1726535077983,0.43852,2280.3,2279.9,0.8121]
[1726535078183,0.4385,2280.4,2280.2,0.43852]
[1726535078880,3.6228,2280.5,2280.2,0.43852]
[1726535079073,0.50736156,2280.4,2280.2,0.43852]
[1726535079281,0.43851,2280.4,2280.3,0.43851]
[1726535079479,0.50736088,2280.4,2280.2,0.43852]
[1726535079783,0.06885088,2280.3,2280.2,0.43852]
[1726535080789,0.50737088,2280.3,2279.9,0.8121]
[1726535080985,0.06885088,2280.2,2280.1,0.43853]
[1726535083087,0.06885022,2280.2,2280.1,0.43853]
[1726535084987,0.43855,2280.1,2280.0,0.43856]
[1726535085283,0.90221022,2280.1,2279.9,0.84908]
[1726535085477,0.06885022,2280.0,2279.9,0.84908]
[1726535086080,1.60486,2280.1,2279.9,0.84908]
[1726535086286,1.60486,2280.1,2280.0,0.43857]
[1726535086684,1.1663,2280.1,2279.6,0.3904]
[1726535086886,1.1663,2280.1,2279.6,0.7939]
[1726535087088,1.1663,2280.1,2279.9,0.43858]
[1726535087280,1.60486,2280.1,2279.9,0.43858]
[1726535094298,0.3948,2280.1,2280.0,0.43857]
[1726535094697,0.83335,2280.1,2280.0,0.43857]
[1726535094990,0.3948,2280.1,2280.0,0.43857]
[1726535100002,0.83336,2280.1,2279.9,0.43858]
[1726535100191,0.43857,2280.0,2279.9,0.43858]
[1726535100387,0.3948,2280.1,2279.9,0.43858]
[1726535100691,0.3948,2280.1,2279.6,2.3739]
[1726535100997,0.3948,2280.1,2279.8,0.4386]
[1726535101301,1.09653,2279.8,2279.0,0.43874]
[1726535101602,3.2078,2279.3,2279.0,0.4077]
[1726535101801,3.2078,2279.3,2279.1,0.43874]
[1726535102005,3.2078,2279.3,2279.0,0.4077]
[1726535102297,3.6251,2279.3,2279.0,0.84645]
[1726535102598,3.6251,2279.3,2279.1,0.43874]
[1726535102801,0.43875,2279.1,2278.7,3.64661]
[1726535103002,2.01875,2279.1,2278.8,0.4077]
[1726535103194,3.64657,2279.0,2278.8,0.4077]
[1726535103389,1.58,2278.9,2278.8,0.4077]
[1726535103710,1.58,2278.9,2278.4,1.58]
[1726535103711,1.9973,2278.9,2278.4,1.58]
[1726535103899,0.4173,2278.9,2278.4,0.8063]
[1726535104402,0.4173,2278.9,2278.5,0.43886]
[1726535104802,0.85608,2278.9,2278.4,1.24517]
[1726535105101,0.4173,2278.9,2278.4,1.24517]
[1726535105399,4.28609,2278.9,2278.4,0.39]
[1726535105898,3.2078,2278.7,2278.4,0.39]
[1726535106305,4.04622,2278.7,2278.4,0.39]
[1726535106496,4.0163,2278.7,2278.4,0.39]
[1726535107098,4.45513,2278.7,2278.4,0.39]
[1726535107295,4.45513,2278.7,2278.3,3.2078]
[1726535107296,3.43,2278.5,2278.3,3.2078]
[1726535107794,4.26447,2278.5,2278.3,3.2078]
[1726535108100,0.43891,2278.3,2278.1,0.3815]
[1726535109193,0.43889,2278.4,2278.1,0.3815]
[1726535109401,3.64669,2278.4,2278.1,0.3815]
[1726535109994,0.22,2279.1,2278.2,7.8196]
[1726535110205,3.2078,2279.2,2278.7,3.43]
[1726535110408,3.2078,2279.2,2278.8,1.25979]
[1726535110704,3.2078,2279.2,2278.9,0.43877]
[1726535111001,3.2078,2279.2,2278.8,1.25979]
[1726535111203,3.2078,2279.2,2278.8,1.2598]
[1726535111796,3.2078,2279.2,2278.8,0.4208]
[1726535112099,3.86876,2279.1,2278.8,0.4208]
[1726535112299,3.86876,2279.1,2278.6,0.43883]
[1726535112495,0.4098,2279.0,2278.6,0.43883]
[1726535114498,0.43882,2278.7,2278.5,0.4208]
[1726535114799,0.43882,2278.7,2278.1,3.2078]
[1726535114800,0.43887,2278.5,2278.1,0.43893]
[1726535115402,0.43887,2278.5,2278.0,1.2153]
[1726535115602,0.43887,2278.5,2278.1,0.43893]
[1726535116199,4.04885,2278.6,2278.1,0.43893]
[1726535116909,4.04885,2278.6,2278.0,0.8295]
[1726535116910,0.43886,2278.5,2278.0,1.26844]
[1726535117211,0.43886,2278.5,2278.1,0.43893]
[1726535120113,0.43886,2278.5,2278.0,4.0373]
[1726535120114,3.61,2278.6,2278.3,0.43888]
[1726535120407,3.61,2278.6,2278.1,3.43]
[1726535120611,4.04885,2278.6,2278.2,0.43891]
[1726535121215,4.04885,2278.6,2278.1,3.43]
[1726535121216,0.43888,2278.4,2278.1,0.43892]
[1726535121902,0.43887,2278.5,2278.2,0.43892]
[1726535123910,0.43888,2278.4,2278.2,0.43892]
[1726535124306,0.43887,2278.5,2278.2,0.43892]
[1726535125109,3.2078,2278.3,2278.0,0.4125]
[1726535125423,0.43891,2278.3,2278.1,0.43893]
[1726535125914,0.43891,2278.3,2278.0,0.85144]
[1726535126115,0.4389,2278.3,2278.0,0.85144]
[1726535126312,0.4154,2278.2,2278.0,0.85144]
[1726535127414,0.4154,2278.2,2278.1,0.43894]
[1726535127824,0.4154,2278.2,2278.0,0.4125]
[1726535127825,3.2078,2278.3,2278.2,0.43892]
[1726535132018,0.43893,2278.2,2278.0,0.4125]
[1726535132217,0.43893,2278.2,2277.7,3.2078]
[1726535132218,0.43896,2278.0,2277.7,3.2078]
[1726535132525,1.25805,2278.1,2277.8,0.43898]
[1726535132821,0.43896,2278.0,2277.8,0.43898]
[1726535133025,0.43898,2277.9,2277.7,0.43901]
[1726535133219,0.43896,2278.0,2277.8,0.43899]
[1726535133418,0.43896,2278.0,2277.6,0.4052]
[1726535133625,3.64676,2278.0,2277.8,0.43899]
[1726535133817,0.43896,2278.0,2277.7,0.439]
[1726535134012,4.0269,2278.1,2277.6,0.4052]
[1726535134318,0.8191,2278.1,2277.6,0.4052]
[1726535134519,0.8191,2278.1,2277.9,0.43896]
[1726535134721,0.84504,2278.1,2277.9,0.43896]
[1726535135513,0.43896,2278.0,2277.8,0.43898]
[1726535135713,0.84504,2278.1,2277.8,0.43898]
[1726535136113,0.84504,2278.1,2277.9,0.43897]
[1726535137228,0.84504,2278.1,2277.6,0.4052]
[1726535137431,0.84504,2278.1,2277.9,0.43897]
[1726535137633,0.84504,2278.1,2277.8,0.43898]
[1726535137825,0.84504,2278.1,2277.9,0.43897]
[1726535138429,5.23464,2278.1,2277.8,0.43898]
[1726535138726,0.4061,2278.1,2277.8,0.43898]
[1726535138930,4.05285,2278.1,2277.8,0.43898]
[1726535139127,0.43895,2278.0,2277.7,0.439]
[1726535139324,7.0439,2278.1,2277.7,0.439]
[1726535139531,7.0439,2278.1,2277.6,0.84423]
[1726535139726,0.43898,2277.9,2277.6,0.84423]
[1726535140223,0.3869,2277.8,2277.7,0.43901]
[1726535140628,0.8259,2277.8,2277.6,0.84422]
[1726535141229,0.8259,2277.8,2277.6,0.4052]
[1726535141630,0.8259,2277.8,2277.6,0.84423]
[1726535141831,4.0337,2277.8,2277.6,0.84423]
[1726535143525,3.5947,2277.8,2277.7,0.43901]
[1726535144237,3.2078,2277.8,2277.7,0.43901]
[1726535147237,3.6468,2277.8,2277.6,0.84423]
[1726535147438,0.3932,2277.7,2277.6,0.84423]
[1726535149442,3.2078,2277.8,2277.7,0.43901]
[1726535152647,3.2078,2277.8,2277.7,9.74395]
[1726535152648,2.5742,2277.8,2277.7,9.74395]
[1726535152847,3.2078,2278.1,2277.8,1.09749]
[1726535153049,3.2078,2278.1,2278.0,0.43895]
[1726535153652,1.22959,2278.4,2278.2,0.43891]
[1726535154644,4.152,2278.9,2278.2,6.6378]
[1726535154645,7.582,2278.9,2278.2,6.6378]
[1726535154848,0.3901,2278.6,2278.4,0.43887]
[1726535157149,0.82894,2278.6,2278.3,0.43888]
[1726535157551,0.3901,2278.6,2278.2,3.2078]
[1726535157749,0.3901,2278.6,2278.3,0.43889]
[1726535157953,0.82895,2278.6,2278.3,0.43889]
[1726535158754,0.3901,2278.6,2278.4,0.43887]
[1726535159050,0.3901,2278.6,2278.3,0.4389]
[1726535159241,0.3901,2278.6,2278.4,0.43887]
[1726535159446,0.3901,2278.6,2278.2,3.2078]
[1726535159447,0.3901,2278.6,2278.3,0.43888]
[1726535160056,0.82895,2278.6,2278.3,0.43888]
[1726535160457,0.43887,2278.5,2278.2,3.6467]
[1726535160651,3.43,2278.3,2278.1,0.43893]
[1726535160853,0.4211,2278.4,2277.8,3.2078]
[1726535161153,0.4211,2278.4,2278.3,0.4389]
[1726535162850,0.4061,2278.5,2278.4,0.43888]
[1726535163052,0.3901,2278.6,2278.5,0.43886]
[1726535163642,0.82894,2278.6,2278.4,0.43887]
[1726535163848,3.86887,2278.5,2278.1,3.2078]
[1726535164159,4.68347,2278.5,2278.3,0.43889]
[1726535164551,4.68347,2278.5,2278.2,0.43891]
[1726535164552,0.43889,2278.4,2278.2,0.43891]
[1726535164756,4.68347,2278.5,2278.2,0.43891]
[1726535164952,4.68347,2278.5,2278.3,0.43889]
[1726535165954,4.68347,2278.5,2278.2,0.4389]
[1726535166150,4.68347,2278.5,2278.3,0.43888]
[1726535166350,4.2446,2278.5,2278.4,0.43888]
[1726535166549,4.2446,2278.5,2278.3,0.43888]
[1726535166962,0.8146,2278.5,2278.4,0.43888]
[1726535167162,0.8146,2278.5,2278.1,3.2078]
[1726535167163,1.25346,2278.5,2278.3,0.43888]
[1726535168148,0.8146,2278.5,2278.4,0.43888]
[1726535168365,0.4096,2278.5,2278.4,3.64668]
[1726535169158,0.4158,2278.8,2278.7,0.43882]
[1726535169352,0.7863,2279.0,2278.9,0.43878]
[1726535169858,4.5624,2279.2,2279.1,0.43874]
[1726535170058,4.9456,2279.2,2279.1,0.43874]
[1726535170665,0.3832,2279.2,2279.1,0.43874]
[1726535170867,0.4031,2279.4,2279.3,0.4387]
[1726535171050,0.4031,2279.4,2279.3,3.6465]
[1726535173461,0.394,2279.5,2279.4,0.43869]
[1726535174059,0.3854,2279.7,2279.6,0.43865]
[1726535174263,0.7795,2279.7,2279.6,0.43865]
[1726535174467,0.43852,2280.3,2280.0,0.43856]
[1726535174764,1.1684,2280.3,2280.0,0.43856]
[1726535175066,1.1684,2280.3,2279.9,3.2078]
[1726535175259,1.1684,2280.3,2280.1,0.43854]
[1726535175453,1.60691,2280.3,2280.0,0.43856]
[1726535177160,0.06893829,2280.2,2280.0,0.43856]
[1726535177556,0.06893829,2280.2,2280.1,0.43855]
[1726535177861,0.06894,2280.2,2280.1,0.43855]
[1726535178753,0.06894021,2280.2,2280.1,0.43855]
[1726535178959,0.06894021,2280.2,2279.9,3.2078]
[1726535179157,0.06894021,2280.2,2280.0,0.43856]
[1726535179460,1.1684,2280.3,2280.2,0.43853]
[1726535179652,0.7795,2280.3,2280.2,3.64633]
[1726535180361,0.3941,2280.3,2280.2,3.64633]
[1726535180963,4.2265,2280.6,2280.2,3.64633]
[1726535180964,0.7965,2280.6,2280.5,0.43847]
[1726535181158,1.25884898,2280.6,2280.5,0.43847]
[1726535181368,1.1899,2280.6,2280.2,3.2078]
[1726535181560,1.1899,2280.6,2280.4,0.43848]
[1726535182564,1.1899,2280.6,2280.2,3.2078]
[1726535183162,1.1899,2280.6,2280.5,0.43847]
[1726535183665,0.3934,2280.6,2280.5,3.64627]
[1726535184060,4.67559,2281.0,2280.8,0.43842]
[1726535184261,0.4074,2280.9,2280.8,0.43842]
[1726535184460,0.4074,2280.9,2280.7,0.43842]
[1726535185369,0.4074,2280.9,2280.5,3.2078]
[1726535185664,3.86843,2280.8,2280.5,0.43846]
[1726535185859,0.4074,2280.9,2280.4,3.2078]
[1726535186171,0.4074,2280.9,2280.7,3.64622]
[1726535186470,0.4074,2280.9,2280.8,0.43842]
[1726535186670,0.4074,2280.9,2280.7,0.43842]
[1726535186871,0.4074,2280.9,2280.8,0.43842]
[1726535187262,0.4074,2280.9,2280.7,0.43842]
[1726535187770,0.4074,2280.9,2280.8,0.43842]
[1726535188770,4.7914,2280.9,2280.7,0.43842]
[1726535188964,0.4074,2280.9,2280.8,0.43842]
[1726535190467,0.8072,2281.0,2280.9,0.4384]
[1726535190661,0.3941,2281.0,2280.9,0.4384]
[1726535190861,0.83173,2281.3,2281.1,0.43836]
[1726535191065,1.25013,2281.3,2281.1,0.43836]
[1726535191971,0.8118,2281.3,2281.1,0.43836]
[1726535192166,0.8118,2281.3,2281.2,0.43834]
[1726535193877,0.4017,2281.4,2281.3,0.43832]
[1726535194277,0.8191,2281.5,2281.4,0.4383]
[1726535196276,0.3888,2281.7,2281.6,0.43826]
[1726535196469,0.7914,2281.7,2281.6,3.64606]
[1726535197064,0.4118,2281.8,2281.6,3.2078]
[1726535197267,0.8005,2282.0,2281.9,0.4382]
[1726535197668,0.8005,2282.0,2281.6,3.2078]
[1726535197881,0.8005,2282.0,2281.8,0.43822]
[1726535198268,0.8005,2282.0,2281.6,3.2078]
[1726535198670,0.8005,2282.0,2281.8,0.4382]
[1726535198870,0.8005,2282.0,2281.8,0.43821]
[1726535199379,0.8005,2282.0,2281.6,3.2078]
[1726535199568,0.8005,2282.0,2281.8,0.43821]
[1726535201481,0.8005,2282.0,2281.6,3.2078]
[1726535201983,0.8005,2282.0,2281.8,0.43822]
[1726535202280,0.4026,2282.0,2281.9,0.4382]
[1726535202487,0.4118,2282.1,2282.0,0.43819]
[1726535204573,0.43821,2281.9,2281.6,3.64605]
[1726535204885,0.83614,2281.8,2281.3,3.2078]
[1726535205078,0.3848,2281.7,2281.5,0.43828]
[1726535205382,0.8011,2281.7,2281.5,0.43827]
[1726535205776,0.8011,2281.7,2281.4,0.43829]
[1726535206178,0.8011,2281.7,2281.5,0.43828]
[1726535206374,0.8011,2281.7,2281.6,0.43826]
[1726535206679,0.8011,2281.7,2281.6,3.64606]
[1726535207888,0.4163,2281.7,2281.6,3.64606]
[1726535208788,0.4163,2281.7,2281.6,3.2078]
[1726535209177,0.4163,2281.7,2281.6,3.64606]
[1726535209380,0.4163,2281.7,2281.6,3.2078]
[1726535210188,0.4163,2281.7,2281.6,3.64606]
[1726535210381,0.4163,2281.7,2281.6,3.2078]
[1726535210579,0.4163,2281.7,2281.4,0.43829]
[1726535210991,0.4163,2281.7,2281.3,3.64611]
[1726535211181,0.85455,2281.7,2281.3,3.64611]
[1726535211782,0.43828,2281.5,2281.3,3.2078]
[1726535212079,0.4217,2281.4,2281.3,3.64612]
[1726535212582,0.4217,2281.4,2281.3,8.02932]
[1726535215090,0.4217,2281.4,2281.3,3.64612]
[1726535215286,0.4217,2281.4,2281.3,8.02932]
[1726535215591,0.4217,2281.4,2281.0,3.5969]
[1726535215592,0.4217,2281.4,2281.2,0.43833]
[1726535215888,0.7873,2281.3,2281.1,0.43835]
[1726535216084,0.7873,2281.3,2280.5,4.092]
[1726535216085,3.2078,2281.2,2280.5,4.092]
[1726535216282,1.09595,2281.0,2280.3,3.7908]
[1726535216484,4.2488,2280.9,2280.3,3.2078]
[1726535216690,0.43846,2280.6,2280.3,3.6463]
[1726535216889,0.3996,2280.5,2280.3,3.6463]
[1726535217083,0.3996,2280.5,2280.4,0.43849]
[1726535220509,0.82613,2280.8,2280.4,4.3848]
[1726535220803,0.3877,2280.8,2280.7,0.43843]
[1726535221000,0.3952,2280.9,2280.8,0.43842]
[1726535221503,0.3858,2281.2,2281.1,0.43836]
[1726535222298,0.3858,2281.2,2281.0,3.2078]
[1726535222299,0.4383,2281.4,2281.2,0.43833]
[1726535222501,0.4383,2281.4,2281.0,3.2078]
[1726535222699,4.004,2281.5,2281.0,3.2078]
[1726535222700,4.44229,2281.5,2281.0,3.2078]
[1726535222901,1.23449,2281.5,2281.0,3.2078]
[1726535223108,3.43,2281.2,2280.4,3.2078]
[1726535223400,0.4057,2281.1,2280.4,7.044]
[1726535223703,0.4057,2281.1,2280.8,0.4384]
[1726535223904,0.4057,2281.1,2280.9,0.43839]
[1726535224098,0.4057,2281.1,2280.8,0.4384]
[1726535224297,0.4057,2281.1,2280.7,3.2078]
[1726535224602,0.43832,2281.3,2280.9,0.43838]
[1726535224806,4.27401,2281.4,2280.9,0.43838]
[1726535225102,0.43832,2281.3,2280.9,0.43838]
[1726535226801,4.274,2281.4,2281.0,0.43838]
[1726535227000,0.4057,2281.4,2281.1,0.43835]
[1726535228006,0.4057,2281.4,2280.8,3.5968]
[1726535228202,0.4057,2281.4,2280.9,0.3866]
[1726535228398,0.4057,2281.4,2281.1,0.43835]
[1726535230002,0.4057,2281.4,2280.9,0.3866]
[1726535230309,0.43835,2281.2,2280.8,0.43841]
[1726535230810,0.43839,2281.0,2280.6,0.43844]
[1726535231116,0.43839,2281.0,2280.6,0.43845]
[1726535231117,0.8037,2280.9,2280.6,0.43845]
[1726535231415,0.8037,2280.9,2280.4,6.6378]
[1726535231416,0.8037,2280.9,2280.7,0.43843]
[1726535232109,0.8037,2280.9,2280.8,0.43842]
[1726535232815,0.3892,2280.9,2280.8,0.43842]
[1726535233311,0.4018,2281.1,2280.9,0.43839]
[1726535233811,0.4018,2281.1,2280.7,3.2078]
[1726535234003,0.4018,2281.1,2280.9,0.43838]
[1726535234204,0.4018,2281.1,2280.7,3.2078]
[1726535234405,0.4018,2281.1,2280.9,0.43838]
[1726535234911,0.4018,2281.1,2281.0,0.43838]
[1726535235916,0.3822,2281.3,2281.1,0.43835]
[1726535236109,0.82052,2281.3,2280.7,3.7816]
[1726535236311,0.82052,2281.3,2281.0,0.43837]
[1726535236312,1.20912,2281.3,2281.0,0.43837]
[1726535237115,0.7708,2281.3,2281.1,0.43836]
[1726535237418,0.7708,2281.3,2281.1,0.43834]
[1726535238302,0.7708,2281.3,2280.7,4.87767]
[1726535238615,0.7708,2281.3,2281.0,3.2078]
[1726535238910,0.7708,2281.3,2281.2,0.43834]
[1726535239315,0.7708,2281.3,2281.0,3.2078]
[1726535239509,0.3822,2281.3,2281.1,0.43835]
[1726535239703,0.3822,2281.3,2281.2,0.43834]
[1726535240212,0.3822,2281.3,2281.1,0.43836]
[1726535240414,0.3822,2281.3,2281.2,0.43834]
[1726535240810,0.3822,2281.3,2281.1,0.43834]
[1726535241010,0.3822,2281.3,2281.2,0.43834]
[1726535241314,4.0148,2281.5,2281.3,0.43831]
[1726535241514,4.3947,2281.5,2281.3,0.43831]
[1726535241704,1.31546,2282.1,2281.3,4.3832]
[1726535241705,0.78603479,2281.9,2281.3,4.3832]
[1726535242019,0.7746,2281.8,2281.3,3.2078]
[1726535242313,0.7746,2281.8,2281.7,0.43824]
[1726535243815,0.7746,2281.8,2281.6,3.64605]
[1726535244313,0.7746,2281.8,2281.7,0.43824]
[1726535245215,0.7746,2281.8,2281.6,3.2078]
[1726535245216,1.21283,2281.8,2281.6,3.2078]
[1726535245419,0.7746,2281.8,2281.6,0.43825]
[1726535246010,0.7746,2281.8,2281.7,0.43824]
[1726535246206,0.7746,2281.8,2281.6,3.64605]
[1726535246412,0.7746,2281.8,2281.7,0.43824]
[1726535249709,0.3972,2281.9,2281.8,0.43822]
[1726535251126,0.7942,2282.1,2282.0,0.43819]
[1726535252620,0.4381,2282.5,2282.2,0.43814]
[1726535252825,1.6607,2282.5,2282.2,0.43814]
[1726535253018,0.43811,2282.4,2282.1,0.43816]
[1726535253716,1.6607,2282.5,2282.2,0.43815]
[1726535253918,0.43811,2282.4,2282.1,0.43816]
[1726535254327,1.6607,2282.5,2282.2,0.43814]
[1726535255717,1.6607,2282.5,2281.9,3.3747]
[1726535255718,1.2226,2282.5,2282.3,0.43813]
[1726535256424,3.86812,2282.4,2281.9,3.2078]
[1726535256624,0.43813,2282.3,2282.0,0.43818]
[1726535257324,3.43,2282.4,2281.9,3.2078]
[1726535257325,3.86812,2282.4,2281.9,3.2078]
[1726535257827,3.86812,2282.4,2282.1,0.43816]
[1726535259129,0.43813,2282.3,2282.0,0.43818]
[1726535259429,0.43815,2282.2,2281.9,3.64599]
[1726535259933,0.419,2282.1,2282.0,0.43819]
[1726535260124,0.48807106,2282.1,2281.9,3.646]
[1726535260327,0.8356,2282.0,2281.9,3.2078]
[1726535260533,0.8356,2282.0,2281.9,3.646]
[1726535261722,0.4381,2282.5,2281.9,7.5902]
[1726535261930,0.06907922,2282.4,2282.2,0.43814]
[1726535262331,1.6851,2282.5,2282.2,0.43814]
[1726535262530,0.50718855,2282.4,2282.2,0.43814]
[1726535262732,1.247,2282.5,2282.2,0.43814]
[1726535262733,0.06907855,2282.3,2282.2,0.43814]
[1726535262931,0.06907855,2282.4,2282.2,0.43814]
[1726535263128,0.06907855,2282.3,2282.1,0.43815]
[1726535263341,0.06907855,2282.3,2282.2,0.43815]
[1726535263538,0.06907855,2282.4,2282.2,0.43815]
[1726535263729,0.50718855,2282.4,2282.1,0.43816]
[1726535263929,0.06907855,2282.3,2282.1,0.43816]
[1726535264527,0.06907855,2282.3,2282.2,0.43815]
[1726535265132,1.247,2282.5,2282.3,0.43813]
[1726535265338,0.0690788,2282.4,2282.3,0.43813]
[1726535265833,0.0690788,2282.4,2282.2,3.64593]
[1726535266432,1.68509,2282.5,2282.2,3.64593]
[1726535266631,0.06908289,2282.4,2282.2,3.64593]
[1726535267032,1.6851,2282.5,2282.2,3.64595]
[1726535268550,0.43811,2282.4,2282.2,3.64593]
[1726535268845,1.6851,2282.5,2282.2,3.2078]
[1726535269145,1.6851,2282.5,2282.2,3.64594]
[1726535270541,1.6851,2282.5,2282.3,0.43813]
[1726535270744,0.43811,2282.4,2282.2,3.64594]
[1726535270945,1.6851,2282.5,2282.2,3.64594]
[1726535271737,1.6851,2282.5,2282.3,0.43813]
[1726535272242,1.6851,2282.5,2282.3,0.43811]
[1726535275249,1.68509,2282.5,2282.3,0.43813]
[1726535278255,1.247,2282.5,2282.4,0.43811]
[1726535278451,1.247,2282.5,2282.3,0.43811]
[1726535278758,0.8315,2282.5,2282.4,0.43811]
[1726535279050,3.6086,2282.8,2282.6,0.43806]
[1726535279249,0.8324,2282.7,2282.6,0.43806]
[1726535280352,3.6086,2282.8,2282.5,3.43]
[1726535280557,0.4173,2282.7,2282.2,3.2078]
[1726535280955,0.85536,2282.7,2282.2,3.2078]
[1726535281145,0.85535,2282.7,2282.4,0.4381]
[1726535281350,0.85536,2282.7,2282.2,3.2078]
[1726535281567,0.4173,2282.7,2282.2,3.2078]
[1726535281860,0.4381,2282.5,2282.2,0.43814]
[1726535282054,0.4192,2282.4,2282.2,0.43814]
[1726535282253,0.4192,2282.4,2282.1,3.64595]
[1726535282448,0.408,2282.3,2282.2,0.43815]
[1726535282860,0.408,2282.3,2282.1,3.64596]
[1726535283062,0.408,2282.3,2282.2,0.43815]
[1726535284852,0.4192,2282.4,2282.2,4.81975]
[1726535285058,0.43807,2282.6,2282.2,0.43815]
[1726535285059,0.85517,2282.6,2282.2,0.43815]
[1726535285757,0.85517,2282.6,2282.1,6.6378]
[1726535285758,0.4171,2282.6,2282.1,6.6378]
[1726535285958,0.4171,2282.6,2282.5,0.43809]
[1726535286557,0.4038,2282.7,2282.5,0.43809]
[1726535286757,5.00712,2282.9,2282.5,0.43809]
[1726535286964,5.00712,2282.9,2282.4,3.6459]
[1726535286965,0.43805,2282.8,2282.4,3.6459]
[1726535287159,0.43805,2282.7,2282.4,3.6459]
[1726535287559,0.43804,2282.8,2282.4,3.6459]
[1726535288155,0.43805,2282.7,2282.4,3.6459]
[1726535288556,0.43804,2282.8,2282.5,0.43809]
[1726535289655,0.43804,2282.8,2282.4,3.64589]
[1726535290260,0.43804,2282.8,2282.5,0.43808]
[1726535290561,0.06906867,2282.7,2282.5,0.43808]
[1726535291356,0.06906867,2282.7,2282.6,0.43807]
[1726535291558,0.8209,2282.9,2282.7,0.43805]
[1726535291559,0.0690731,2282.8,2282.7,0.43805]
[1726535291758,0.06907479,2282.8,2282.7,0.43805]
[1726535293765,1.1946,2283.0,2282.8,0.43802]
[1726535293962,0.06908804,2282.9,2282.8,0.43802]
[1726535295270,0.50708766,2282.9,2282.7,0.43804]
[1726535295568,0.06907766,2282.8,2282.7,0.43804]
[1726535295964,0.50709766,2282.9,2282.7,0.43804]
[1726535296165,0.06907766,2282.8,2282.4,3.2078]
[1726535296368,0.50713766,2282.7,2282.4,3.2078]
[1726535296574,5.71961,2283.0,2282.5,0.43809]
[1726535296575,1.24687766,2282.6,2282.5,0.43809]
[1726535297557,1.1778,2282.6,2282.5,0.43809]
[1726535298366,0.7962,2282.6,2282.5,0.43809]
[1726535300166,0.7962,2282.6,2282.4,3.6459]
[1726535300375,0.4043,2282.5,2282.4,3.6459]
[1726535301373,0.7962,2282.6,2282.5,0.43809]
[1726535302175,2.01802,2282.9,2282.6,0.43805]
[1726535302371,2.01802,2282.9,2282.7,0.43805]
[1726535302372,0.7957,2282.8,2282.7,0.43805]
[1726535303271,0.399,2283.0,2282.8,0.43803]
[1726535303476,0.399,2283.0,2282.9,0.43801]
[1726535303665,0.399,2283.0,2282.8,0.43802]
[1726535304875,0.83699,2283.0,2282.8,0.43803]
[1726535306681,0.399,2283.0,2282.8,0.43803]
[1726535308184,0.399,2283.0,2282.8,0.43802]
[1726535308377,0.399,2283.0,2282.9,0.43801]
[1726535308574,0.399,2283.0,2282.8,0.43802]
[1726535308772,0.399,2283.0,2282.9,0.43801]
[1726535310577,0.8183,2283.1,2282.9,0.43801]
[1726535311190,1.25627,2283.1,2282.9,0.43801]